fUSD/lending_fUSD_20260112
["ID","MTS","AMOUNT","RATE_DAILY","PERIOD"]
[401464315,1768242640877,-150.0,0.00017,2]
[401464316,1768242640887,-250.0,0.00017,2]
[401464317,1768242640897,-3557.07289406,0.00017,2]
[401464318,1768242640906,-160.0,0.00017,2]
[401464319,1768242640916,-225.13457576,0.00017,2]
[401464320,1768242640926,-150.0,0.0001701,2]
[401464321,1768242640937,-150.0,0.00017014,2]
[401464322,1768242640946,-10832.34909668,0.00017015,2]
[401464323,1768242640955,-150.0,0.00017015,2]
[401464324,1768242640965,-30000.0,0.00017018,2]
[401464325,1768242640975,-150.0,0.00017018,2]
[401464326,1768242640985,-150.0,0.00017022,2]
[401464327,1768242640994,-150.0,0.00017031,2]
[401464328,1768242641004,-150.0,0.0001704,2]
[401464329,1768242641014,-483.1,0.00017041,2]
[401464330,1768242641023,-483.1,0.00017041,2]
[401464331,1768242641033,-482.53,0.00017041,2]
[401464332,1768242641043,-1000.0,0.00017049,2]
[401464333,1768242641052,-150.0,0.00017049,2]
[401464334,1768242641062,-150.0,0.00017055,2]
[401464335,1768242641072,-150.0,0.00017057,2]
[401464336,1768242641082,-151.0,0.00017059,2]
[401464337,1768242641091,-998.0,0.00017059,2]
[401464338,1768242641101,-500.0,0.00017059,2]
[401464339,1768242641111,-194.72792766,0.00017059,2]
[401464340,1768242641120,-250.0,0.00017059,2]
[401464341,1768242641130,-500.0,0.00017059,2]
[401464342,1768242641140,-250.0,0.00017059,2]
[401464343,1768242641150,-500.0,0.00017059,2]
[401464344,1768242641159,-250.0,0.00017059,2]
[401464345,1768242641169,-500.0,0.00017059,2]
[401464346,1768242641179,-620.0,0.00017059,2]
[401464347,1768242641189,-214.19143741,0.00017059,2]
[401464348,1768242641198,-500.0,0.00017059,2]
[401464349,1768242641209,-500.0,0.00017059,2]
[401464350,1768242641219,-500.0,0.00017059,2]
[401464351,1768242641229,-500.0,0.00017059,2]
[401464352,1768242641238,-500.0,0.00017059,2]
[401464353,1768242641247,-500.0,0.00017059,2]
[401464354,1768242641257,-500.0,0.00017059,2]
[401464355,1768242641267,-500.0,0.00017059,2]
[401464356,1768242641279,-500.0,0.00017059,2]
[401464357,1768242641290,-500.0,0.00017059,2]
[401464358,1768242641300,-500.0,0.00017059,2]
[401464359,1768242641310,-500.0,0.00017059,2]
[401464360,1768242641320,-500.0,0.00017059,2]
[401464361,1768242641329,-500.0,0.00017059,2]
[401464362,1768242641339,-500.0,0.00017059,2]
[401464363,1768242641348,-500.0,0.00017059,2]
[401464364,1768242641358,-500.0,0.00017059,2]
[401464365,1768242641368,-500.0,0.00017059,2]
[401464366,1768242641378,-500.0,0.00017059,2]
[401464367,1768242641388,-500.0,0.00017059,2]
[401464368,1768242641398,-500.0,0.00017059,2]
[401464369,1768242641408,-500.0,0.00017059,2]
[401464370,1768242641417,-500.0,0.00017059,2]
[401464371,1768242641427,-322.6107,0.00017059,2]
[401464372,1768242641437,-500.0,0.00017059,2]
[401464373,1768242641447,-706.57931957,0.00017059,2]
[401464374,1768242641456,-500.0,0.00017059,2]
[401464375,1768242641467,-533.88981491,0.00017059,2]
[401464376,1768242641477,-500.0,0.00017059,2]
[401464377,1768242641488,-500.0,0.00017059,2]
[401464378,1768242641498,-500.0,0.00017059,2]
[401464379,1768242641508,-250.0,0.00017059,2]
[401464380,1768242641518,-250.0,0.00017059,2]
[401464381,1768242641527,-250.0,0.00017059,2]
[401464382,1768242641538,-250.0,0.00017059,2]
[401464383,1768242641549,-250.0,0.00017059,2]
[401464384,1768242641559,-250.0,0.00017059,2]
[401464385,1768242641568,-250.0,0.00017059,2]
[401464386,1768242641578,-250.0,0.00017059,2]
[401464387,1768242641588,-285.08125974,0.00017059,2]
[401464388,1768242641599,-1025.94323817,0.00017059,2]
[401464389,1768242641608,-500.0,0.00017059,2]
[401464390,1768242641618,-500.0,0.00017059,2]
[401464391,1768242641628,-500.0,0.00017059,2]
[401464392,1768242641638,-500.0,0.00017059,2]
[401464393,1768242641651,-500.0,0.00017059,2]
[401464394,1768242641661,-500.0,0.00017059,2]
[401464395,1768242641671,-500.0,0.00017059,2]
[401464396,1768242641683,-724.98153853,0.00017059,2]
[401464397,1768242641693,-150.0,0.00017061,2]
[401464398,1768242641703,-500.0,0.00017073,2]
[401464399,1768242641713,-503.84192068,0.00017073,2]
[401464400,1768242641724,-500.0,0.00017073,2]
[401464401,1768242641734,-500.0,0.00017073,2]
[401464402,1768242641746,-500.0,0.00017073,2]
[401464403,1768242641755,-500.0,0.00017073,2]
[401464404,1768242641765,-500.0,0.00017073,2]
[401464405,1768242641775,-500.0,0.00017073,2]
[401464406,1768242641785,-500.0,0.00017073,2]
[401464407,1768242641794,-500.0,0.00017073,2]
[401464408,1768242641804,-166.96227274,0.00017073,2]
[401464409,1768242641813,-500.0,0.00017073,2]
[401464410,1768242641823,-500.0,0.00017073,2]
[401464411,1768242641833,-500.0,0.00017073,2]
[401464412,1768242641843,-500.0,0.00017073,2]
[401464413,1768242641853,-500.0,0.00017073,2]
[401464414,1768242641862,-500.32712274,0.00017073,2]
[401464415,1768242641872,-500.0,0.00017073,2]
[401464416,1768242641882,-500.0,0.00017073,2]
[401464417,1768242641891,-162.59101262,0.00017073,2]
[401464418,1768242641901,-500.38035534,0.00017073,2]
[401464419,1768242641910,-500.0,0.00017073,2]
[401464420,1768242641919,-647.42016729,0.00017073,2]
[401464421,1768242641929,-169.17232811,0.00017073,2]
[401464422,1768242641938,-500.0,0.00017073,2]
[401464423,1768242641948,-500.0,0.00017073,2]
[401464424,1768242641957,-500.0,0.00017073,2]
[401464425,1768242641967,-500.0,0.00017073,2]
[401464426,1768242641976,-500.0,0.00017073,2]
[401464427,1768242641985,-501.85422751,0.00017073,2]
[401464428,1768242641995,-163.4155148,0.00017073,2]
[401464429,1768242642004,-503.00247421,0.00017073,2]
[401464430,1768242642014,-486.88056707,0.00017073,2]
[401464431,1768242642024,-500.84213941,0.00017073,2]
[401464432,1768242642034,-500.19211788,0.00017073,2]
[401464433,1768242642045,-500.0,0.00017073,2]
[401464434,1768242642057,-500.26791262,0.00017073,2]
[401464435,1768242642067,-500.0,0.00017073,2]
[401464436,1768242642078,-150.0,0.00017073,2]
[401464437,1768242642087,-162.91397516,0.00017074,2]
[401464438,1768242642097,-150.0,0.00017083,2]
[401464439,1768242642106,-12300.347267,0.00017093,2]
[401464440,1768242642117,-7233.5259084,0.00017093,2]
[401464441,1768242642128,-1140.9262413,0.00017093,2]
[401464442,1768242642137,-150.0,0.000171,2]
[401464443,1768242642147,-150.0,0.000171,2]
[401464444,1768242642156,-150.0,0.000171,2]
[401464445,1768242642165,-150.0,0.000171,2]
[401464446,1768242642175,-150.0,0.000171,2]
[401464447,1768242642184,-150.0,0.000171,2]
[401464448,1768242642193,-150.0,0.000171,2]
[401464449,1768242642203,-150.0,0.000171,2]
[401464450,1768242642213,-150.0,0.000171,2]
[401464451,1768242642223,-1000.0,0.00017112,2]
[401464452,1768242642232,-150.0,0.00017117,2]
[401464453,1768242642243,-469.78735424,0.00017125,2]
[401464454,1768242642252,-150.0,0.00017127,2]
[401464455,1768242642261,-150.0,0.00017139,2]
[401464456,1768242642270,-150.0,0.00017143,2]
[401464457,1768242642280,-150.0,0.00017145,2]
[401464458,1768242642288,-1000.0,0.00017148,2]
[401464459,1768242642298,-150.0,0.00017151,2]
[401464460,1768242642306,-183.94,0.00017151,2]
[401464461,1768242642315,-5813.0,0.00017156,2]
[401464462,1768242642324,-150.0,0.0001716,2]
[401464463,1768242642333,-500.0,0.00017163,2]
[401464464,1768242642342,-391.13971577,0.00017163,2]
[401464465,1768242642351,-3678.43905385,0.00017165,2]
[401464466,1768242642360,-2325.3,0.00017169,2]
[401464467,1768242642369,-150.0,0.00017169,2]
[401464468,1768242642379,-150.0,0.00017178,2]
[401464469,1768242642388,-150.0,0.00017178,2]
[401464470,1768242642398,-150.0,0.00017178,2]
[401464471,1768242642407,-150.0,0.00017182,2]
[401464472,1768242642416,-5512.0282783,0.00017184,2]
[401464473,1768242642426,-79086.4735956,0.00017184,2]
[401464474,1768242642436,-150.0,0.00017185,2]
[401464475,1768242642445,-183.94,0.00017185,2]
[401464476,1768242642455,-150.0,0.00017186,2]
[401464477,1768242642465,-150.0,0.0001719,2]
[401464478,1768242642474,-150.0,0.000172,2]
[401464479,1768242642483,-1000.0,0.00017214,2]
[401464480,1768242642493,-150.0,0.00017217,2]
[401464481,1768242642504,-150.0,0.00017219,2]
[401464482,1768242642514,-150.0,0.0001722,2]
[401464483,1768242642523,-150.0,0.00017229,2]
[401464484,1768242642532,-458.0,0.00017233,2]
[401464485,1768242642542,-150.0,0.00017235,2]
[401464486,1768242642551,-10832.34909668,0.00017236,2]
[401464487,1768242642560,-150.0,0.00017236,2]
[401464488,1768242642570,-150.0,0.00017238,2]
[401464489,1768242642579,-150.0,0.00017253,2]
[401464490,1768242642589,-150.0,0.00017257,2]
[401464491,1768242642599,-150.0,0.00017271,2]
[401464492,1768242642608,-150.0,0.0001728,2]
[401464493,1768242642617,-150.0,0.0001728,2]
[401464494,1768242642627,-150.0,0.0001728,2]
[401464495,1768242642638,-150.0,0.0001728,2]
[401464496,1768242642649,-150.0,0.00017287,2]
[401464497,1768242642658,-234.22420722,0.00017289,2]
[401464498,1768242642667,-150.0,0.00017291,2]
[401464499,1768242642677,-150.0,0.00017296,2]
[401464500,1768242642687,-150.0,0.00017308,2]
[401464501,1768242642696,-150.0,0.00017314,2]
[401464502,1768242642707,-150.0,0.00017321,2]
[401464503,1768242642717,-150.0,0.00017325,2]
[401464504,1768242642726,-242.23,0.00017333,2]
[401464505,1768242642736,-150.0,0.00017335,2]
[401464506,1768242642745,-150.0,0.0001734,2]
[401464507,1768242642755,-150.0,0.00017345,2]
[401464508,1768242642764,-150.0,0.00017355,2]
[401464509,1768242642774,-150.0,0.00017357,2]
[401464510,1768242642784,-150.0,0.0001737,2]
[401464511,1768242642794,-150.0,0.00017374,2]
[401464512,1768242642804,-150.0,0.00017377,2]
[401464513,1768242642814,-150.0,0.00017389,2]
[401464514,1768242642824,-150.0,0.000174,2]
[401464515,1768242642833,-150.0,0.000174,2]
[401464516,1768242642843,-150.0,0.000174,2]
[401464517,1768242642852,-150.0,0.000174,2]
[401464519,1768242642862,-150.0,0.000174,2]
[401464520,1768242642872,-150.0,0.000174,2]
[401464521,1768242642883,-150.0,0.00017413,2]
[401464522,1768242642892,-150.0,0.00017415,2]
[401464524,1768242642902,-150.0,0.00017423,2]
[401464526,1768242642916,-150.0,0.00017443,2]
[401464527,1768242642926,-150.0,0.00017446,2]
[401464528,1768242642936,-286.06,0.00017447,2]
[401464529,1768242642946,-150.0,0.00017452,2]
[401464530,1768242642955,-150.0,0.00017455,2]
[401464531,1768242642964,-150.0,0.00017457,2]
[401464532,1768242642974,-10832.34909668,0.00017457,2]
[401464533,1768242642983,-150.0,0.0001746,2]
[401464534,1768242642992,-150.0,0.0001746,2]
[401464535,1768242643002,-150.0,0.0001746,2]
[401464536,1768242643011,-150.0,0.0001746,2]
[401464537,1768242643021,-150.0,0.00017486,2]
[401464538,1768242643030,-150.0,0.00017491,2]
[401464539,1768242643040,-150.0,0.00017491,2]
[401464540,1768242643050,-1601.85016191,0.000175,2]
[401464541,1768242643059,-1000.0,0.000175,2]
[401464542,1768242643070,-150.0,0.00017505,2]
[401464543,1768242643080,-150.0,0.00017509,2]
[401464544,1768242643090,-150.0,0.00017515,2]
[401464545,1768242643099,-184.87,0.00017518,2]
[401464546,1768242643108,-150.0,0.0001752,2]
[401464547,1768242643118,-10000.0,0.00017521,2]
[401464548,1768242643128,-150.0,0.00017525,2]
[401464549,1768242643138,-150.0,0.00017529,2]
[401464550,1768242643147,-150.0,0.0001753,2]
[401464551,1768242643157,-3678.43905385,0.00017533,2]
[401464552,1768242643166,-200.0,0.00017534,2]
[401464553,1768242643176,-1014.46636748,0.00017535,2]
[401464554,1768242643454,-1433.53380028,0.00017535,2]
[401464555,1768242643463,-150.0,0.0001755,2]
[401464556,1768242643474,-150.0,0.00017558,2]
[401464557,1768242643483,-150.0,0.00017564,2]
[401464558,1768242643495,-150.0,0.0001757,2]
[401464559,1768242643505,-150.0,0.00017571,2]
[401464560,1768242643515,-1000.0,0.00017574,2]
[401464561,1768242643526,-150.0,0.0001758,2]
[401464562,1768242643536,-150.0,0.00017585,2]
[401464563,1768242643545,-150.0,0.00017592,2]
[401464564,1768242643555,-1000.0,0.00017593,2]
[401464565,1768242643564,-150.0,0.00017595,2]
[401464566,1768242643573,-500.0,0.00017599,2]
[401464567,1768242643582,-500.0,0.00017599,2]
[401464568,1768242643591,-150.0,0.00017599,2]
[401464569,1768242643601,-150.0,0.00017599,2]
[401464570,1768242643610,-150.0,0.00017599,2]
[401464571,1768242643619,-500.0,0.00017599,2]
[401464572,1768242643629,-150.0,0.00017599,2]
[401464573,1768242643643,-150.0,0.00017599,2]
[401464574,1768242643653,-150.0,0.00017599,2]
[401464575,1768242643662,-574.0,0.00017599,2]
[401464576,1768242643673,-150.0,0.00017599,2]
[401464577,1768242643683,-500.0,0.00017599,2]
[401464578,1768242643694,-508.0,0.00017599,2]
[401464579,1768242643705,-150.0,0.000176,2]
[401464580,1768242643717,-151.0,0.00017607,2]
[401464581,1768242643728,-553.64373807,0.00017607,2]
[401464582,1768242643739,-1282.0,0.00017607,2]
[401464583,1768242643749,-150.0,0.00017609,2]
[401464584,1768242643759,-150.0,0.00017614,2]
[401464585,1768242643770,-150.0,0.00017618,2]
[401464586,1768242643780,-1000.0,0.0001762,2]
[401464587,1768242643791,-1000.0,0.00017621,2]
[401464588,1768242643802,-201.20066245,0.00017621,2]
[401464589,1768242643811,-500.0,0.00017621,2]
[401464590,1768242643822,-1000.0,0.00017621,2]
[401464591,1768242643833,-1000.0,0.00017621,2]
[401464592,1768242643843,-500.0,0.00017621,2]
[401464593,1768242643854,-500.0,0.00017621,2]
[401464594,1768242643864,-500.53829083,0.00017621,2]
[401464595,1768242643874,-1000.0,0.00017621,2]
[401464596,1768242643883,-500.0,0.00017621,2]
[401464597,1768242643893,-1004.07642883,0.00017621,2]
[401464598,1768242643903,-1282.0,0.00017625,2]
[401464599,1768242643914,-150.0,0.00017626,2]
[401464600,1768242643924,-150.0,0.0001764,2]
[401464601,1768242643935,-150.0,0.0001764,2]
[401464602,1768242643944,-150.0,0.0001764,2]
[401464603,1768242643954,-150.0,0.0001764,2]
[401464604,1768242643964,-6468.51348483,0.0001764,2]
[401464605,1768242643974,-150.0,0.00017648,2]
[401464606,1768242643984,-500.0,0.00017654,2]
[401464607,1768242643994,-500.0,0.00017654,2]
[401464608,1768242644004,-200.0,0.00017654,2]
[401464609,1768242644014,-150.0,0.00017654,2]
[401464610,1768242644023,-500.0,0.00017654,2]
[401464611,1768242644033,-150.0,0.00017654,2]
[401464612,1768242644042,-574.0,0.00017654,2]
[401464613,1768242644052,-150.0,0.00017654,2]
[401464614,1768242644061,-500.0,0.00017654,2]
[401464615,1768242644071,-508.0,0.00017654,2]
[401464616,1768242644081,-150.0,0.00017654,2]
[401464617,1768242644091,-1282.0,0.00017655,2]
[401464618,1768242644100,-150.0,0.00017657,2]
[401464619,1768242644110,-150.0,0.0001766,2]
[401464620,1768242644119,-2017.475,0.00017665,2]
[401464621,1768242644129,-169.599,0.00017665,2]
[401464622,1768242644139,-150.0,0.00017673,2]
[401464623,1768242644149,-661.95,0.00017676,2]
[401464624,1768242644159,-483.1,0.00017676,2]
[401464625,1768242644168,-661.95,0.00017676,2]
[401464626,1768242644178,-10832.34909668,0.00017679,2]
[401464627,1768242644188,-162.0,0.0001768,2]
[401464630,1768242644198,-150.0,0.00017685,2]
[401464633,1768242644207,-587.67454702,0.00017685,2]
[401464634,1768242644218,-150.0,0.00017687,2]
[401464635,1768242644227,-150.0,0.00017694,2]
[401464636,1768242644237,-150.0,0.000177,2]
[401464637,1768242644247,-150.0,0.000177,2]
[401464638,1768242644257,-1000.0,0.000177,2]
[401464639,1768242644267,-150.0,0.000177,2]
[401464640,1768242644276,-780.28325037,0.000177,2]
[401464641,1768242644286,-403.0,0.000177,5]
[401464642,1768242644296,-269.06323949,0.00017709,2]
[401464643,1768242644306,-500.0,0.00017709,2]
[401464644,1768242644318,-150.0,0.00017709,2]
[401464645,1768242644329,-500.0,0.00017709,2]
[401464646,1768242644339,-200.0,0.00017709,2]
[401464647,1768242644350,-574.0,0.00017709,2]
[401464648,1768242644361,-200.0,0.00017709,2]
[401464649,1768242644371,-500.0,0.00017709,2]
[401464650,1768242644381,-508.0,0.00017709,2]
[401464651,1768242644392,-1000.0,0.00017709,2]
[401464652,1768242644402,-2821.0,0.0001772,2]
[401464653,1768242644414,-150.0,0.00017723,2]
[401464654,1768242644424,-150.0,0.00017726,2]
[401464655,1768242644434,-150.0,0.00017727,2]
[401464656,1768242644445,-150.0,0.00017728,2]
[401464657,1768242644457,-150.0,0.0001773,2]
[401464658,1768242644467,-150.0,0.00017743,2]
[401464659,1768242644476,-26538.0,0.00017753,2]
[401464660,1768242644487,-150.0,0.0001776,2]
[401464661,1768242644496,-150.0,0.00017762,2]
[401464662,1768242644506,-500.0,0.00017763,2]
[401464663,1768242644516,-222.79325491,0.00017763,2]
[401464664,1768242644526,-500.0,0.00017763,2]
[401464665,1768242644536,-574.0,0.00017763,2]
[401464666,1768242644546,-500.0,0.00017763,2]
[401464667,1768242644557,-508.0,0.00017763,2]
[401464668,1768242644568,-150.0,0.00017765,2]
[401464669,1768242644579,-165.72926193,0.00017767,2]
[401464670,1768242644589,-150.0,0.00017775,2]
[401464671,1768242644599,-36455.06917388,0.00017777,2]
[401464672,1768242645200,-1157.83394336,0.00017777,2]
[401464673,1768242645213,-8208.13722735,0.00017777,2]
[401464674,1768242645225,-16854.07851302,0.00017777,2]
[401464675,1768242645235,-150.0,0.00017782,2]
[401464676,1768242645245,-151.0,0.00017782,2]
[401464677,1768242645255,-25061.66653594,0.00017785,2]
[401464678,1768242645267,-431.69598331,0.00017785,2]
[401464679,1768242645279,-944.33,0.00017785,2]
[401464680,1768242645291,-1323.45921772,0.00017785,2]
[401464681,1768242645303,-36659.22978072,0.00017785,2]
[401464682,1768242645319,-3017.06644853,0.00017785,2]
[401464683,1768242645331,-33909.29506012,0.00017785,2]
[401464684,1768242645342,-607.35270997,0.00017785,2]
[401464685,1768242645352,-58620.61098503,0.00017785,2]
[401464686,1768242645363,-499.21428765,0.00017785,2]
[401464687,1768242645374,-3002.10256196,0.00017785,2]
[401464688,1768242645390,-871.59133588,0.00017785,2]
[401464689,1768242645635,-151.0,0.00015417,2]
[401464690,1768242645647,-186.61575351,0.00016477,2]
[401464691,1768242645657,-1000.0,0.00017758,2]
[401464692,1768242645667,-6459.38737412,0.00017785,2]
[401464693,1768242645696,-405.0,0.00017785,2]
[401464694,1768242645719,-2759.8345469,0.00017785,2]
[401464695,1768242645730,-493.65095226,0.00017785,2]
[401464696,1768242645743,-5000.00031248,0.00017785,2]
[401464697,1768242645754,-9037.39875583,0.00017785,2]
[401464698,1768242645774,-6443.94524875,0.00017785,2]
[401464699,1768242645786,-8117.35424924,0.00017785,2]
[401464702,1768242646099,-1.7e-07,0.00017785,2]
[401464704,1768242646830,-151.0,0.00015417,2]
[401464705,1768242646840,-13832.03625858,0.00017785,2]
[401464706,1768242646861,-693.59995,0.00017785,2]
[401464707,1768242646875,-17485.09839338,0.00017785,2]
[401464708,1768242647045,-186.61575351,0.00016762,2]
[401464709,1768242647054,-1639.52424649,0.00017785,2]
[401464710,1768242647065,-4137.0,0.00017785,2]
[401464711,1768242647076,-4492.26240325,0.00017785,2]
[401464712,1768242647086,-186319.5246,0.00017785,2]
[401464713,1768242647095,-154.361437,0.00017785,2]
[401464714,1768242647105,-294.131466,0.00017785,2]
[401464715,1768242647115,-1753.886409,0.00017785,2]
[401464716,1768242647124,-300.663612,0.00017785,2]
[401464717,1768242647133,-151.0,0.00017785,2]
[401464718,1768242647143,-1753.886409,0.00017785,2]
[401464719,1768242647153,-300.663612,0.00017785,2]
[401464720,1768242647162,-232.029516,0.00017785,2]
[401464721,1768242647172,-1753.886409,0.00017785,2]
[401464722,1768242647182,-232.029516,0.00017785,2]
[401464723,1768242647193,-300.663612,0.00017785,2]
[401464724,1768242647203,-152.635792,0.00017785,2]
[401464725,1768242647216,-232.029516,0.00017785,2]
[401464726,1768242647225,-151.0,0.00017785,2]
[401464727,1768242647235,-300.663612,0.00017785,2]
[401464728,1768242647244,-151.0,0.00017785,2]
[401464729,1768242647253,-152.635792,0.00017785,2]
[401464730,1768242647263,-232.029516,0.00017785,2]
[401464731,1768242647272,-907.365651,0.00017785,2]
[401464732,1768242647281,-152.635792,0.00017785,2]
[401464733,1768242647290,-1753.886409,0.00017785,2]
[401464734,1768242647299,-907.365651,0.00017785,2]
[401464735,1768242647308,-152.635792,0.00017785,2]
[401464736,1768242647318,-907.365651,0.00017785,2]
[401464737,1768242647327,-151.0,0.00017785,2]
[401464738,1768242647336,-907.365651,0.00017785,2]
[401464739,1768242647345,-200.625596,0.00017785,2]
[401464740,1768242647355,-738.259264,0.00017785,2]
[401464741,1768242647364,-200.625596,0.00017785,2]
[401464742,1768242647373,-151.0,0.00017785,2]
[401464743,1768242647382,-200.625596,0.00017785,2]
[401464744,1768242647391,-151.0,0.00017785,2]
[401464745,1768242647400,-738.259264,0.00017785,2]
[401464746,1768242647410,-504.529018,0.00017785,2]
[401464747,1768242647419,-738.259264,0.00017785,2]
[401464748,1768242647427,-200.625596,0.00017785,2]
[401464749,1768242647437,-151.0,0.00017785,2]
[401464750,1768242647446,-504.529018,0.00017785,2]
[401464751,1768242647455,-738.259264,0.00017785,2]
[401464752,1768242647464,-504.529018,0.00017785,2]
[401464753,1768242647474,-151.0,0.00017785,2]
[401464754,1768242647483,-504.529018,0.00017785,2]
[401464755,1768242647492,-445.406192,0.00017785,2]
[401464756,1768242647502,-445.406192,0.00017785,2]
[401464757,1768242647511,-445.406192,0.00017785,2]
[401464758,1768242647520,-1258.125866,0.00017785,2]
[401464759,1768242647530,-445.406192,0.00017785,2]
[401464760,1768242647539,-1258.125866,0.00017785,2]
[401464761,1768242647549,-2576.078876,0.00017785,2]
[401464762,1768242647558,-1258.125866,0.00017785,2]
[401464763,1768242647568,-2576.078876,0.00017785,2]
[401464764,1768242647577,-1258.125866,0.00017785,2]
[401464765,1768242647586,-2576.078876,0.00017785,2]
[401464766,1768242647596,-2576.078876,0.00017785,2]
[401464767,1768242647604,-175.060837,0.00017785,2]
[401464768,1768242647614,-276.895758,0.00017785,2]
[401464769,1768242647623,-151.0,0.00017785,2]
[401464770,1768242647633,-221.221876,0.00017785,2]
[401464771,1768242647645,-244.125013,0.00017785,2]
[401464772,1768242647654,-151.0,0.00017785,2]
[401464773,1768242647663,-244.125013,0.00017785,2]
[401464774,1768242647672,-244.125013,0.00017785,2]
[401464775,1768242647682,-151.0,0.00017785,2]
[401464776,1768242647692,-287.925226,0.00017785,2]
[401464777,1768242647701,-151.0,0.00017785,2]
[401464778,1768242647710,-244.125013,0.00017785,2]
[401464779,1768242647720,-151.0,0.00017785,2]
[401464780,1768242647729,-287.925226,0.00017785,2]
[401464781,1768242647739,-151.0,0.00017785,2]
[401464782,1768242647750,-287.925226,0.00017785,2]
[401464783,1768242647759,-154.599624,0.00017785,2]
[401464784,1768242647767,-151.0,0.00017785,2]
[401464785,1768242647776,-154.599624,0.00017785,2]
[401464786,1768242647786,-287.925226,0.00017785,2]
[401464787,1768242647795,-154.599624,0.00017785,2]
[401464788,1768242647804,-154.599624,0.00017785,2]
[401464789,1768242647814,-150.0,0.00017786,2]
[401464790,1768242647824,-150.0,0.00017792,2]
[401464791,1768242647833,-587.67454701,0.00017793,2]
[401464792,1768242647842,-150.0,0.00017796,2]
[401464793,1768242647851,-2000.0,0.000178,2]
[401464794,1768242647860,-150.0,0.000178,2]
[401464795,1768242647868,-1000.0,0.000178,2]
[401464796,1768242647877,-26578.61631112,0.000178,2]
[401464797,1768242647886,-150.0,0.00017804,2]
[401464798,1768242647895,-156.587,0.00017807,2]
[401464799,1768242647904,-500.0,0.00017808,2]
[401464800,1768242647913,-158.94728599,0.00017816,2]
[401464801,1768242647923,-159.20755794,0.00017818,2]
[401464802,1768242647932,-500.0,0.00017818,2]
[401464803,1768242647941,-574.0,0.00017818,2]
[401464804,1768242647951,-500.0,0.00017818,2]
[401464805,1768242647961,-508.0,0.00017818,2]
[401464806,1768242647971,-150.0,0.0001782,2]
[401464807,1768242647980,-150.0,0.0001782,2]
[401464808,1768242647991,-150.0,0.0001782,2]
[401464809,1768242648000,-150.0,0.0001782,2]
[401464810,1768242648010,-5402.58292,0.0001782,2]
[401464811,1768242648018,-5402.58292,0.0001782,2]
[401464812,1768242648028,-5402.58292,0.0001782,2]
[401464813,1768242648037,-5402.58292,0.0001782,2]
[401464814,1768242648047,-150.0,0.00017829,2]
[401464815,1768242648056,-150.0,0.0001783,2]
[401464816,1768242648065,-150.0,0.00017836,2]
[401464817,1768242648074,-1282.0,0.00017838,2]
[401464818,1768242648083,-1000.0,0.00017838,2]
[401464819,1768242648093,-150.0,0.00017843,2]
[401464820,1768242648102,-200.0,0.00017855,2]
[401464821,1768242648112,-150.0,0.00017862,2]
[401464822,1768242648121,-500.0,0.00017863,2]
[401464823,1768242648131,-8831.0,0.00017863,2]
[401464824,1768242648141,-150.0,0.00017864,2]